bitfinex-derivatives/quotes_SOLF0:USTF0_20250522
["timestamp","ask_amount","ask_price","bid_price","bid_amount"]
[1747921314776,0.03872579,178.36,178.35,5.6064]
[1747921314975,0.03849211,178.37,178.34,0.04063965]
[1747921315377,9.211e-05,178.37,178.36,5.6061]
[1747921315573,9.211e-05,178.37,178.36,172.9861]
[1747921316777,9.211e-05,178.37,178.34,0.04063965]
[1747921317074,9.211e-05,178.37,178.35,167.38]
[1747921317277,9.211e-05,178.37,178.36,5.6061]
[1747921320172,9.211e-05,178.37,178.35,167.38]
[1747921320478,9.211e-05,178.37,178.34,0.04063965]
[1747921321577,9.211e-05,178.37,178.3,167.3]
[1747921322182,5.6064,178.35,178.3,167.3]
[1747921322482,9.211e-05,178.37,178.3,167.3]
[1747921322774,9.211e-05,178.37,178.31,0.0367318]
[1747921322987,0.04268528,178.36,178.18,484.52]
[1747921323181,17.43501566,178.34,178.18,484.52]
[1747921323381,1.8869,178.33,178.18,484.52]
[1747921323774,1.8869,178.33,178.23,5.6102]
[1747921323980,1.8869,178.33,178.26,0.03728196]
[1747921324189,0.03683125,178.3,178.26,0.03728196]
[1747921324483,0.03683125,178.3,178.29,5.6083]
[1747921325373,0.03683125,178.3,178.26,0.03728196]
[1747921325579,0.03683125,178.3,178.21,167.3]
[1747921325780,1.8869,178.33,178.24,5.6096]
[1747921326282,1.8869,178.33,178.23,5.6102]
[1747921326481,1.8869,178.33,178.21,167.3]
[1747921326684,0.03819581,178.29,178.25,0.03645497]
[1747921326885,0.03819581,178.29,178.25,5.64595497]
[1747921327188,0.03819581,178.29,178.25,0.03645497]
[1747921327588,0.03819581,178.29,178.26,5.609]
[1747921327886,0.03819581,178.29,178.25,0.03645497]
[1747921328489,0.03819581,178.29,178.18,651.82]
[1747921328786,1.8869,178.33,178.18,651.82]
[1747921329086,5.6088,178.28,178.24,5.6096]
[1747921329289,1.8869,178.33,178.18,651.82]
[1747921329486,0.04315741,178.28,178.24,0.04000274]
[1747921330890,5.65185741,178.28,178.24,5.64980274]
[1747921331085,0.04315741,178.28,178.24,0.04000274]
[1747921331486,0.04315741,178.28,178.25,5.6093]
[1747921331893,0.04315741,178.28,178.24,0.04000274]
[1747921332099,5.65185741,178.28,178.24,0.04000274]
[1747921332488,5.65185741,178.28,178.24,5.64970274]
[1747921332692,0.04315741,178.28,178.24,0.04000274]
[1747921333591,0.04315741,178.28,178.18,758.38]
[1747921333785,0.04315741,178.28,178.19,5.6114]
[1747921333987,0.04315741,178.28,178.18,758.38]
[1747921334286,5.6101,178.24,178.2,5.611]
[1747921334484,5.64666504,178.24,178.2,0.04322542]
[1747921335196,5.6102,178.23,178.2,0.04322542]
[1747921335388,0.03656504,178.24,178.2,0.04322542]
[1747921336092,0.03656504,178.24,178.23,5.6102]
[1747921336895,0.03656504,178.24,178.2,0.04322542]
[1747921337486,0.03656504,178.24,178.23,5.6102]
[1747921337789,2.0745,178.32,178.2,0.04322542]
[1747921337993,2.0745,178.32,178.18,758.38]
[1747921338193,2.0745,178.32,178.19,28.03819121]
[1747921338501,2.0745,178.32,178.28,5.6083]
[1747921338796,2.0745,178.32,178.25,166.98]
[1747921338998,2.11388843,178.32,178.28,0.03892219]
[1747921339196,7.72138843,178.32,178.28,0.03892219]
[1747921339397,2.11388843,178.32,178.28,0.03892219]
[1747921341291,2.11388843,178.32,178.2,166.96]
[1747921341491,7.6819,178.32,178.2,166.96]
[1747921341694,5.11123862,178.45,178.25,28.03819121]
[1747921341894,1.9874,178.41,178.26,167.5852]
[1747921342203,0.04146302,178.35,178.34,5.6067]
[1747921342395,0.04146302,178.35,178.32,0.03747683]
[1747921342696,0.04146302,178.35,178.33,5.6071]
[1747921342893,0.04146302,178.35,178.32,0.03747683]
[1747921344800,0.04146302,178.35,178.32,5.64457683]
[1747921345497,0.04146302,178.35,178.33,5.6069]
[1747921345698,0.04146302,178.35,178.32,0.03747683]
[1747921346197,0.04146302,178.35,178.33,5.6068]
[1747921346693,0.04146302,178.35,178.32,5.64477683]
[1747921346997,0.04146302,178.35,178.32,0.03747683]
[1747921347201,0.04146302,178.35,178.32,5.64457683]
[1747921347502,0.04146302,178.35,178.32,0.03747683]
[1747921347695,0.04146302,178.35,178.34,5.6067]
[1747921347903,0.04146302,178.35,178.32,0.03747683]
[1747921349296,5.64796302,178.35,178.32,0.03747683]
[1747921349499,0.04146302,178.35,178.32,0.03747683]
[1747921349903,5.64786302,178.35,178.32,0.03747683]
[1747921350096,0.04146302,178.35,178.32,0.03747683]
[1747921350703,0.04146302,178.35,178.28,166.96]
[1747921351198,5.607,178.34,178.3,5.6077]
[1747921351405,0.04146302,178.35,178.3,5.6077]
[1747921351601,0.04146302,178.35,178.31,0.04232798]
[1747921351898,166.96146302,178.35,178.23,4.69454134]
[1747921352106,166.92,178.35,178.23,4.69454134]
[1747921352303,5.6081,178.3,178.23,4.69454134]
[1747921352505,166.92,178.35,178.23,4.69454134]
[1747921352708,0.03982171,178.31,178.27,0.03861528]
[1747921352902,0.03982171,178.31,178.23,1.56954134]
[1747921353097,0.03982171,178.31,178.18,9.36711947]
[1747921353802,166.94,178.3,178.24,0.03770937]
[1747921354001,0.03716437,178.29,178.18,166.94]
[1747921354197,166.94,178.3,178.25,0.04138126]
[1747921354507,0.03993924,178.29,178.25,0.04138126]
[1747921355105,5.6087,178.28,178.25,0.04138126]
[1747921355298,0.03993924,178.29,178.25,0.04138126]
[1747921355798,5.6087,178.28,178.25,0.04138126]
[1747921356102,0.03993924,178.29,178.25,0.04138126]
[1747921356504,5.63993924,178.29,178.13,166.94]
[1747921356699,1.9829,178.31,178.13,166.94]
[1747921357102,5.6106,178.22,178.18,5.6117]
[1747921357295,1.9829,178.31,178.13,166.94]
[1747921357499,0.0411441,178.24,178.2,0.04173221]
[1747921357700,0.0411441,178.24,178.15,5.6124]
[1747921357902,166.94,178.26,178.15,5.6124]
[1747921358101,3.8792,178.25,178.15,5.6124]
[1747921358300,5.6114,178.2,178.13,166.94]
[1747921358600,3.8792,178.25,178.13,166.94]
[1747921358807,0.03833608,178.21,178.17,0.03603882]
[1747921359209,0.03833608,178.21,178.18,106.58]
[1747921359410,0.03833608,178.21,178.19,166.98]
[1747921359612,0.03833608,178.21,178.2,5.6111]
[1747921360718,3.608e-05,178.21,178.2,5.6111]
[1747921363007,7.09413862,178.31,178.19,1.9576]
[1747921363201,7.09413862,178.31,178.19,275.5376]
[1747921363604,1.9829,178.31,178.19,275.5376]
[1747921363804,0.03720292,178.27,178.23,0.04136538]
[1747921364008,0.03720292,178.27,178.26,5.6093]
[1747921364312,0.03720292,178.27,178.23,0.04136538]
[1747921365107,5.64640292,178.27,178.23,0.04136538]
[1747921365308,0.03720292,178.27,178.23,0.04136538]
[1747921365709,0.03720292,178.27,178.26,5.6093]
[1747921366013,0.03720292,178.27,178.23,0.04136538]
[1747921366213,0.03720292,178.27,178.26,5.6093]
[1747921366709,0.03720292,178.27,178.23,0.04136538]
[1747921367313,0.03720292,178.27,178.26,5.6093]
[1747921370519,0.03720292,178.27,178.23,0.04136538]
[1747921370923,5.6099,178.24,178.23,0.04136538]
[1747921371127,0.03720292,178.27,178.23,0.04136538]
[1747921371819,0.03720292,178.27,178.19,166.98]
[1747921372122,166.38,178.26,178.17,6.21813915]
[1747921372524,166.38,178.26,178.17,3.09203915]
[1747921372525,5.6114,178.2,178.17,3.09203915]
[1747921372723,166.38,178.26,178.17,3.09203915]
[1747921372923,0.04118945,178.23,178.2,0.04081299]
[1747921373120,0.04118945,178.23,178.16,5.6123]
[1747921373422,0.04118945,178.23,178.13,166.38]
[1747921373621,5.6116,178.19,178.13,166.38]
[1747921374015,171.49123862,178.26,178.13,166.38]
[1747921374216,0.04080787,178.21,178.18,0.02199272]
[1747921375519,0.04080787,178.21,178.2,5.6111]
[1747921376728,0.04080787,178.21,178.19,5.6114]
[1747921376930,0.04080787,178.21,178.18,0.02199272]
[1747921378531,0.04080787,178.21,178.2,5.6111]
[1747921378731,0.04080787,178.21,178.18,0.02199272]
[1747921379134,0.04080787,178.21,178.14,5.613]
[1747921379334,166.38,178.26,178.1,273.04]
[1747921380134,0.03740086,178.2,178.1,273.04]
[1747921380828,0.03740086,178.2,178.1,166.42]
[1747921381223,0.03740086,178.2,178.14,5.6129]
[1747921381629,5.612,178.18,178.14,5.6129]
[1747921381831,0.03740086,178.2,178.14,5.6129]
[1747921382036,0.03740086,178.2,178.15,5.6125]
[1747921382237,0.03740086,178.2,178.1,166.42]
[1747921383636,5.64860086,178.2,178.1,166.42]
[1747921383840,0.03740086,178.2,178.1,166.42]
[1747921385938,5.6126,178.16,178.13,5.6131]
[1747921386235,0.04308366,178.16,178.1,166.42]
[1747921386638,5.65558366,178.16,178.1,166.42]
[1747921387033,5.65558366,178.16,178.13,5.6133]
[1747921387229,5.65558366,178.16,178.03,76.8679]
[1747921387230,0.04308366,178.16,178.03,3.635]
[1747921387434,0.03996197,178.11,178.03,170.095]
[1747921387635,5.65396197,178.11,178.08,5.6147]
[1747921387938,0.03996197,178.11,178.03,168.444]
[1747921388134,0.03996197,178.11,178.03,166.46]
[1747921388335,0.03996197,178.11,178.0,2.0675]
[1747921388525,0.04320596,178.07,178.0,2.0675]
[1747921389241,5.65850596,178.07,178.0,2.0675]
[1747921389433,0.04320596,178.07,178.0,2.0675]
[1747921389832,0.04320596,178.07,178.06,5.6156]
[1747921390339,0.04320596,178.07,178.05,5.6158]
[1747921390540,0.04320596,178.07,178.0,2.0675]
[1747921390834,0.04320596,178.07,178.06,5.6156]
[1747921391035,0.04320596,178.07,178.0,2.0675]
[1747921391437,0.04320596,178.07,178.01,166.48]
[1747921392541,0.04320596,178.07,178.05,5.6157]
[1747921392736,0.04320596,178.07,178.01,166.48]
[1747921393134,0.04320596,178.07,178.06,5.6156]
[1747921394544,1.9477,178.15,178.01,166.48]
[1747921395443,1.9477,178.15,178.1,5.6141]
[1747921395641,5.6558292,178.14,178.11,0.03794539]
[1747921395838,0.03595721,178.14,178.11,0.03939036]
[1747921396039,0.03595721,178.14,178.08,5.42994041]
[1747921396242,1.9477,178.15,178.08,5.42994041]
[1747921396541,1.9477,178.15,178.01,166.48]
[1747921397047,0.03706944,178.1,178.01,166.48]
[1747921397849,0.03706944,178.1,178.09,5.6146]
[1747921398349,0.03706944,178.1,178.08,5.6148]
[1747921398539,0.03706944,178.1,178.01,166.48]
[1747921398848,0.03706944,178.1,178.04,5.616]
[1747921399146,0.03706944,178.1,177.99,165.68]
[1747921399345,0.04262904,178.06,178.02,5.6167]
[1747921399543,0.03802988,178.06,177.99,165.68]
[1747921399941,0.03802988,178.06,178.01,5.6169]
[1747921400135,0.03802988,178.06,177.99,165.68]
[1747921400539,0.03802988,178.06,177.99,171.2975]
[1747921400747,0.03802988,178.06,177.99,165.68]
[1747921401744,0.03802988,178.06,177.97,1.9306]
[1747921402648,5.65382988,178.06,178.02,5.6166]
[1747921402844,0.03802988,178.06,177.97,167.6306]
[1747921403044,5.65362988,178.06,177.97,167.6306]
[1747921403245,0.03802988,178.06,177.97,167.6306]
[1747921403750,5.6171,178.02,177.97,165.7]
[1747921403955,0.03828083,178.01,177.93,167.3731]
[1747921404251,0.03828083,178.01,177.93,165.7]
[1747921404750,0.03828083,178.01,178.0,5.6175]
[1747921405046,0.03828083,178.01,177.93,165.7]
[1747921405954,0.03828083,178.01,178.0,5.6175]
[1747921406156,0.03828083,178.01,177.93,165.7]
[1747921406345,5.65538083,178.01,177.97,5.6181]
[1747921406549,0.03828083,178.01,177.92,2.0156]
[1747921406755,0.03828083,178.01,177.93,165.72]
[1747921406956,5.6178,177.99,177.96,5.6185]
[1747921407159,0.03828083,178.01,177.93,165.72]
[1747921408655,0.03828083,178.01,178.0,5.6175]
[1747921409563,0.03828083,178.01,177.99,5.6177]
[1747921409763,0.03828083,178.01,177.93,165.72]
[1747921409954,0.03828083,178.01,178.0,5.6175]
[1747921412365,0.03828083,178.01,177.96,165.76]
[1747921412662,0.03828083,178.01,178.0,5.6175]
[1747921413162,0.03828083,178.01,177.96,165.76]
[1747921414956,5.6182,177.98,177.95,5.6188]
[1747921415157,0.03828083,178.01,177.92,165.76]
[1747921415366,0.03916519,177.98,177.92,165.76]
[1747921415663,0.03916519,177.98,177.9,2.054]
[1747921415967,0.03916519,177.98,177.89,4.69491995]
[1747921416263,5.6193,177.95,177.92,5.6198]
[1747921416661,0.03916519,177.98,177.89,4.69491995]
[1747921416860,0.03987665,177.95,177.89,4.69491995]
[1747921417266,165.76,178.03,177.9,0.03671097]
[1747921417468,165.76,178.03,177.89,4.69491995]
[1747921417759,165.76,178.03,177.9,11.2412]
[1747921417962,1.9368,178.05,177.9,11.2412]
[1747921418162,5.6165,178.03,178.0,5.6172]
[1747921418367,5.6165,178.03,178.0,0.03907971]
[1747921418368,0.04129874,178.03,178.0,0.03907971]
[1747921418771,0.04129874,178.03,178.01,5.6171]
[1747921419067,0.04129874,178.03,178.0,0.03907971]
[1747921419964,5.65809874,178.03,178.0,5.65657971]
[1747921420168,0.04129874,178.03,178.0,5.65657971]
[1747921420368,0.04129874,178.03,178.0,0.03907971]
[1747921420568,0.04129874,178.03,178.01,5.6171]
[1747921420758,0.04129874,178.03,178.0,0.03907971]
[1747921421070,0.04129874,178.03,178.01,5.6171]
[1747921421267,0.04129874,178.03,178.0,0.03907971]
[1747921422270,5.6169,178.02,178.0,0.03907971]
[1747921422871,5.65789874,178.03,178.0,5.65647971]
[1747921423073,0.04129874,178.03,178.0,0.03907971]
[1747921424075,2.0775,178.11,178.01,165.78]
[1747921424370,5.11123862,178.13,178.01,165.78]
[1747921425171,0.03568708,178.09,178.08,5.6149]
[1747921427070,5.11123862,178.13,178.07,164.85693838]
[1747921427270,5.6128,178.15,178.07,164.85693838]
[1747921427574,2.0212,178.2,178.07,164.85693838]
[1747921427774,2.0212,178.2,178.07,164.82]
[1747921428074,5.6132,178.14,178.11,0.04065879]
[1747921428274,0.040144,178.15,178.11,0.04065879]
[1747921430372,0.040144,178.15,178.14,5.613]
[1747921430680,5.11123862,178.23,178.13,271.52]
[1747921430883,10.72163862,178.23,178.14,3.6826]
[1747921431083,5.11123862,178.23,178.14,3.6826]
[1747921431478,0.04036776,178.2,178.17,0.03917733]
[1747921432775,0.04036776,178.2,178.19,5.6115]
[1747921433071,5.11123862,178.23,178.19,164.76]
[1747921433280,6.99643862,178.31,178.19,164.76]
[1747921433472,5.11123862,178.31,178.19,164.76]
[1747921433985,0.03747747,178.27,178.23,0.04199776]
[1747921434280,5.11123862,178.31,178.24,106.7]
[1747921434581,5.11123862,178.31,178.25,164.72]
[1747921434986,5.11123862,178.31,178.28,5.6084]
[1747921435278,5.14780818,178.31,178.28,0.03984804]
[1747921435480,5.14780818,178.31,178.28,5.64844804]
[1747921435783,5.14780818,178.31,178.28,0.03984804]
[1747921437087,0.03656956,178.31,178.28,0.03984804]
[1747921437281,0.03656956,178.31,178.3,5.608]
[1747921438785,1.899,178.39,178.32,5.6071]
[1747921438985,1.899,178.39,178.32,164.68]
[1747921439289,164.72,178.42,178.34,5.6065]
[1747921439488,164.72,178.42,178.32,164.68]
[1747921439791,164.72,178.42,178.35,0.03674583]
[1747921439792,0.03785968,178.39,178.35,0.03674583]
[1747921440686,5.6061,178.36,178.35,0.03674583]
[1747921441482,0.03785968,178.39,178.24,166.6029]
[1747921441785,182.14681699,178.42,178.24,166.6029]
[1747921441981,106.6,178.41,178.24,166.6029]
[1747921442287,106.6,178.41,178.24,164.62]
[1747921442490,5.6074,178.32,178.31,7.056e-05]
[1747921442690,164.62,178.34,178.24,164.62]
[1747921442880,2.004,178.31,178.24,164.62]
[1747921443186,5.6096,178.25,178.24,164.62]
[1747921443386,2.004,178.31,178.14,484.76]
[1747921443588,0.03689396,178.24,178.21,0.03737009]
[1747921443785,5.6102,178.23,178.21,0.03737009]
[1747921444392,5.6105,178.22,178.21,0.03737009]
[1747921445096,0.03711018,178.24,178.21,0.03737009]
[1747921446986,0.03711018,178.24,178.21,5.64797009]
[1747921447191,0.03711018,178.24,178.21,0.03737009]
[1747921447487,0.03711018,178.24,178.21,5.64787009]
[1747921447790,0.03711018,178.24,178.21,0.03737009]
[1747921447979,0.03711018,178.24,178.23,5.6102]
[1747921448796,0.03711018,178.24,178.21,0.03737009]
[1747921449393,5.6105,178.22,178.21,0.03737009]
[1747921449592,0.03711018,178.24,178.21,0.03737009]
[1747921450993,0.03711018,178.24,178.21,5.64797009]
[1747921451189,0.03711018,178.24,178.21,0.03737009]
[1747921451494,5.6105,178.22,178.21,0.03737009]
[1747921451693,0.03711018,178.24,178.17,106.6]
[1747921451889,0.03711018,178.24,178.13,1.971]
[1747921452086,5.6111,178.21,178.16,5.6121]
[1747921452295,164.62,178.27,178.11,166.608]
[1747921452485,5.6114,178.2,178.15,5.6126]
[1747921452686,0.04178533,178.19,178.16,0.03648216]
[1747921452891,0.04312664,178.19,178.16,0.04128053]
[1747921454193,5.6121,178.17,178.16,0.04128053]
[1747921454392,0.04312664,178.19,178.16,0.04128053]
[1747921455193,5.612,178.18,178.16,0.04128053]
[1747921455600,0.04312664,178.19,178.16,0.04128053]
[1747921455901,5.6121,178.17,178.16,0.04128053]
[1747921456099,0.04312664,178.19,178.16,0.04128053]
[1747921456396,5.612,178.18,178.16,0.04128053]
[1747921456594,0.04312664,178.19,178.16,0.04128053]
[1747921457391,0.04312664,178.19,178.18,5.6118]
[1747921457596,0.04312664,178.19,178.16,0.04128053]
[1747921459197,0.04312664,178.19,178.08,1.8986]
[1747921459396,2.0013,178.19,178.07,163.5]
[1747921459800,5.6136,178.13,178.08,5.6147]
[1747921460301,0.04095643,178.12,178.09,0.04044301]
[1747921460508,0.03932386,178.12,178.09,0.04044301]
[1747921461698,165.56,178.25,178.1,163.52]
[1747921461903,1.9623,178.24,178.1,163.52]
[1747921462104,5.6116,178.19,178.14,5.613]
[1747921462605,0.03672621,178.18,178.15,0.04083738]
[1747921462806,0.04015351,178.18,178.15,0.03603375]
[1747921463311,5.6124,178.16,178.15,0.03603375]
[1747921464311,5.6122,178.17,178.15,0.03603375]
[1747921464712,0.04015351,178.18,178.15,0.03603375]
[1747921465413,5.6124,178.16,178.15,0.03603375]
[1747921466814,0.04015351,178.18,178.15,0.03603375]
[1747921468913,5.6124,178.16,178.15,0.03603375]
[1747921469411,5.6122,178.17,178.15,0.03603375]
[1747921469612,0.04015351,178.18,178.15,0.03603375]
[1747921470013,5.6121,178.17,178.15,0.03603375]
[1747921470716,5.6124,178.16,178.15,0.03603375]
[1747921470917,0.04015351,178.18,178.15,0.03603375]
[1747921471215,5.65205351,178.18,178.15,0.03603375]
[1747921472515,5.65205351,178.18,178.15,5.64873375]
[1747921472813,0.04015351,178.18,178.15,0.03603375]
[1747921473118,0.04015351,178.18,178.15,5.64853375]
[1747921473518,0.04015351,178.18,178.15,0.03603375]
[1747921474616,5.6124,178.16,178.15,0.03603375]
[1747921475518,0.04015351,178.18,178.15,0.03603375]
[1747921476011,0.04015351,178.18,178.16,5.6121]
[1747921476210,0.04015351,178.18,178.15,0.03603375]
[1747921476715,0.04015351,178.18,178.17,5.6121]
[1747921477218,0.04015351,178.18,178.15,0.03603375]
[1747921478623,5.6123,178.17,178.15,0.03603375]
[1747921479325,5.6124,178.16,178.15,0.03603375]
[1747921480228,5.6124,178.16,178.04,1.7468]
[1747921480229,0.04015351,178.18,178.05,754.94]
[1747921480427,163.54,178.22,178.05,754.94]
[1747921481130,0.04054213,178.15,178.12,0.04057713]
[1747921481326,0.04233061,178.15,178.12,0.04057713]
[1747921481923,0.04233061,178.15,178.13,5.6132]
[1747921482123,0.04233061,178.15,178.12,0.04057713]
[1747921482630,0.04233061,178.15,178.14,5.613]
[1747921484430,0.04233061,178.15,178.12,0.04057713]
[1747921485429,0.04233061,178.15,178.14,5.613]
[1747921485629,0.04233061,178.15,178.12,0.04057713]
[1747921486132,0.04233061,178.15,178.13,5.6131]
[1747921487633,0.04233061,178.15,178.14,5.613]
[1747921488335,0.04233061,178.15,178.13,5.6133]
[1747921489036,0.04233061,178.15,178.14,5.613]
[1747921489337,0.04233061,178.15,178.12,0.04057713]
[1747921489635,0.04233061,178.15,178.13,5.6133]
[1747921489833,5.65503061,178.15,178.12,0.04057713]
[1747921490636,0.04233061,178.15,178.12,0.04057713]
[1747921491736,5.65503061,178.15,178.12,5.65417713]
[1747921491943,0.04233061,178.15,178.12,0.04057713]
[1747921492246,0.04233061,178.15,178.06,4.69491995]
[1747921492737,5.6148,178.09,178.06,10.31031995]
[1747921493139,4.0088,178.16,178.06,4.69491995]
[1747921493340,0.03574787,178.13,178.09,0.04293872]
[1747921495439,5.6143,178.1,178.09,0.04293872]
[1747921496238,5.6158,178.06,178.03,5.6165]
[1747921496437,162.26,178.11,178.01,4.69491995]
[1747921497138,162.26,178.11,177.99,111.37491995]
[1747921497345,0.03570903,178.07,178.03,0.03847987]
[1747921497545,0.03570903,178.07,178.04,5.6162]
[1747921497942,0.03570903,178.07,178.03,0.03847987]
[1747921499348,5.6156,178.06,178.03,0.03847987]
[1747921499548,0.03570903,178.07,178.03,0.03847987]
[1747921500245,5.65570903,178.07,177.96,6.25595962]
[1747921500444,5.11123862,178.13,177.96,6.25595962]
[1747921500649,17.49329906,178.12,177.96,6.25595962]
[1747921500844,5.11123862,178.13,177.96,6.25595962]
[1747921501043,179.79121956,178.14,177.97,162.3]
[1747921501044,5.11123862,178.11,177.97,162.3]
[1747921501244,0.04153086,178.06,177.97,162.3]
[1747921501641,0.04153086,178.06,178.05,5.6159]
[1747921501843,5.11123862,178.11,177.96,489.91113239]
[1747921502051,5.11123862,178.11,177.97,162.3]
[1747921502848,0.03895322,178.06,178.02,0.04037202]
[1747921503764,5.6165,178.03,178.02,7.202e-05]
[1747921504153,0.03895322,178.06,178.02,7.202e-05]
[1747921504863,0.03895322,178.06,178.03,5.6162]
[1747921505365,0.03895322,178.06,178.05,5.6159]
[1747921505558,0.03895322,178.06,178.02,7.202e-05]
[1747921505963,5.6165,178.03,178.02,7.202e-05]
[1747921506263,0.03895322,178.06,178.02,7.202e-05]
[1747921506461,5.6165,178.03,178.02,7.202e-05]
[1747921507163,162.32,178.04,177.93,162.32]
[1747921507665,5.6171,178.02,177.93,162.32]
[1747921507866,4.0895,178.08,177.93,162.32]
[1747921508169,0.04085388,178.02,178.0,5.6172]
[1747921508464,0.03918097,178.03,177.93,162.32]
[1747921508763,4.0895,178.08,177.93,162.32]
[1747921508764,0.04083409,178.0,177.99,5.6178]
[1747921508965,0.03807412,178.01,177.93,162.32]
[1747921509160,0.03807412,178.01,177.92,3.9841]
[1747921509365,0.03807412,178.01,177.92,166.3041]
[1747921509866,5.6181,177.99,177.95,5.6188]
[1747921510067,0.03807412,178.01,177.92,166.3041]
[1747921510262,0.03645823,177.98,177.92,166.3041]
[1747921510754,4.0895,178.08,177.92,166.3041]
[1747921511060,5.11123862,178.1,178.04,5.616]
[1747921511263,5.11123862,178.1,177.99,162.32]
[1747921511461,5.11123862,178.09,177.98,162.32]
[1747921511661,5.11123862,178.09,178.03,5.6164]
[1747921511860,0.03994203,178.08,178.04,0.03541511]
[1747921512166,5.6159,178.05,178.04,0.03541511]
[1747921512564,0.03994203,178.08,177.92,3.9841]
[1747921512565,162.32,178.07,177.92,3.9841]
[1747921512760,3.869,178.04,177.92,166.3041]
[1747921513570,0.03871204,178.0,177.92,166.3041]
[1747921513966,0.03871204,178.0,177.99,5.6178]
[1747921514168,0.03871204,178.0,177.92,166.3041]
[1747921515065,0.03871204,178.0,177.99,5.6178]
[1747921515364,5.11123862,178.09,177.92,166.3041]
[1747921516163,5.11123862,178.09,177.99,0.0394184]
[1747921516467,0.03767095,178.06,177.99,0.0394184]
[1747921516672,0.03767095,178.06,178.05,5.6159]
[1747921518064,0.03767095,178.06,178.04,0.04217824]
[1747921518261,17.49650968,178.05,177.91,3.8762]
[1747921518464,5.9818,178.04,177.92,5.6197]
[1747921518661,5.9818,178.04,177.9,6.25595962]
[1747921519369,0.03678283,177.99,177.9,6.25595962]
[1747921520176,0.03678283,177.99,177.98,5.6181]
[1747921520870,161.14,178.08,177.95,161.12]
[1747921521074,161.14,178.08,177.96,1.9253]
[1747921521276,6.0284,178.09,177.91,2.0243]
[1747921521466,6.0284,178.09,177.92,267.88]
[1747921521873,0.03569182,178.02,177.99,0.03678283]
[1747921522070,0.03571682,178.02,177.99,0.03678283]
[1747921524567,5.6174,178.0,177.99,0.03678283]
[1747921524976,5.6174,178.0,177.99,8.283e-05]
[1747921525174,5.6193,177.95,177.92,161.14]
[1747921525380,6.0565,178.01,177.92,161.14]
[1747921525570,161.14,178.07,177.97,5.6184]
[1747921525769,3.9766,178.06,177.91,2.0243]
[1747921526175,0.04213015,178.0,177.92,1.9724]
[1747921526677,0.04213015,178.0,177.99,5.6178]
[1747921526876,166.25123862,178.07,177.97,161.16]
[1747921527277,10.72653862,178.07,177.97,267.9]
[1747921527576,5.11123862,178.07,177.97,267.9]
[1747921527772,0.04027602,178.04,178.03,5.6164]
[1747921528975,0.04027602,178.04,178.0,0.03605325]
[1747921530780,5.6167,178.03,178.0,5.65345325]
[1747921531379,0.04027602,178.04,178.0,0.03605325]
[1747921531983,0.04027602,178.04,178.03,5.6165]
[1747921532183,0.04027602,178.04,178.0,0.03605325]
[1747921533475,5.6171,178.01,178.0,0.03605325]
[1747921533679,0.04027602,178.04,178.0,0.03605325]
[1747921535085,5.65657602,178.04,178.01,5.6169]
[1747921535380,0.04027602,178.04,178.0,0.03605325]
[1747921536087,5.6168,178.02,178.0,0.03605325]
[1747921536287,0.04027602,178.04,177.93,2.0069]
[1747921536584,161.16,178.05,177.9,167.41595962]
[1747921536985,17.49650968,178.01,177.9,6.25595962]
[1747921537185,5.9463,178.0,177.9,6.25595962]
[1747921537387,0.04107862,177.97,177.9,6.25595962]
[1747921537685,0.04107862,177.97,177.86,167.41595962]
[1747921537879,0.03973626,177.93,177.86,6.25595962]
[1747921538480,161.19973626,177.93,177.86,6.25595962]
[1747921538782,5.6221,177.86,177.83,9.36711947]
[1747921538990,0.04119444,177.86,177.83,9.36711947]
[1747921541077,0.04119444,177.86,177.79,12.45183068]
[1747921541281,0.04119444,177.86,177.85,5.6222]
[1747921541779,0.04119444,177.86,177.82,5.6229]
[1747921541980,0.04119444,177.86,177.76,165.0533]
[1747921542492,0.04119444,177.86,177.79,5.6238]
[1747921542683,0.04119444,177.86,177.76,165.0533]
[1747921543493,5.11123862,177.94,177.76,165.0533]
[1747921543791,5.11123862,177.95,177.77,17.49650968]
[1747921543983,5.6194,177.94,177.77,17.49650968]
[1747921544184,5.11123862,177.95,177.77,28.74590968]
[1747921544386,10.73033862,177.95,177.91,5.62]